fUST/lending_fUST_20250727
["ID","MTS","AMOUNT","RATE_DAILY","PERIOD"]
[375350265,1753630251489,-960.72986292,0.00024072,10]
[375350267,1753630251498,-500.0,0.00024104,2]
[375350269,1753630251508,-212.19,0.00024109,2]
[375350271,1753630251518,-1176.83,0.00024109,2]
[375350273,1753630251528,-460.0,0.00024109,2]
[375350275,1753630251538,-1072.36,0.00024109,2]
[375350277,1753630251550,-978.59,0.00024109,2]
[375350279,1753630251562,-2050.99,0.00024109,2]
[375350281,1753630251572,-672.5,0.00024109,2]
[375350283,1753630251581,-549.02,0.00024109,2]
[375350285,1753630251591,-2590.32,0.00024109,2]
[375350287,1753630251601,-916.27,0.00024109,2]
[375350289,1753630251612,-774.57,0.00024109,2]
[375350291,1753630251622,-463.32,0.00024109,2]
[375350293,1753630251632,-1418.71,0.00024109,2]
[375350295,1753630251642,-810.81,0.00024109,2]
[375350297,1753630251652,-500.0,0.00024121,2]
[375350299,1753630251661,-500.0,0.00024125,2]
[375350301,1753630251671,-150.0,0.00024164,2]
[375350303,1753630251681,-178.3698008,0.00024164,2]
[375350305,1753630251691,-500.0,0.00024165,2]
[375350307,1753630251700,-155.26545874,0.00024192,2]
[375350309,1753630251710,-472.1,0.00024195,6]
[375350311,1753630251720,-390.118237,0.00024208,8]
[375350313,1753630251729,-960.72986292,0.0002421,10]
[375350315,1753630251739,-760.0,0.00024227,2]
[375350317,1753630251748,-9492.35,0.00024262,11]
[375350319,1753630251759,-619.0,0.00024288,2]
[375350321,1753630251772,-561.0,0.00024288,2]
[375350323,1753630251781,-198.0,0.00024288,2]
[375350325,1753630251791,-1000.0,0.000243,2]
[375350327,1753630251800,-1000.0,0.000243,2]
[375350329,1753630251810,-1000.0,0.000243,2]
[375350331,1753630251819,-1000.0,0.000243,2]
[375350333,1753630251829,-1000.0,0.000243,2]
[375350335,1753630251838,-1000.0,0.000243,2]
[375350337,1753630251848,-1000.0,0.000243,2]
[375350339,1753630251858,-1000.0,0.000243,2]
[375350341,1753630251868,-1000.0,0.000243,2]
[375350343,1753630251878,-1000.0,0.000243,2]
[375350345,1753630251888,-1000.0,0.000243,2]
[375350347,1753630251898,-1000.0,0.000243,2]
[375350349,1753630251908,-1000.0,0.000243,2]
[375350351,1753630251919,-1000.0,0.000243,2]
[375350353,1753630251928,-1000.0,0.000243,2]
[375350355,1753630251938,-1000.0,0.000243,2]
[375350357,1753630251948,-1000.0,0.000243,2]
[375350359,1753630251957,-1000.0,0.000243,2]
[375350361,1753630251967,-1000.0,0.000243,2]
[375350363,1753630251977,-1000.0,0.000243,2]
[375350365,1753630251988,-1000.0,0.000243,2]
[375350367,1753630251997,-1000.0,0.000243,2]
[375350369,1753630252007,-1000.0,0.000243,2]
[375350371,1753630252017,-1000.0,0.000243,2]
[375350373,1753630252027,-1000.0,0.000243,2]
[375350375,1753630252036,-1000.0,0.000243,2]
[375350377,1753630252046,-1000.0,0.000243,2]
[375350379,1753630252056,-1000.0,0.000243,2]
[375350381,1753630252065,-1000.0,0.000243,2]
[375350383,1753630252075,-1000.0,0.000243,2]
[375350385,1753630252085,-1000.0,0.000243,2]
[375350387,1753630252094,-1000.0,0.000243,2]
[375350389,1753630252104,-1000.0,0.000243,2]
[375350391,1753630252115,-1000.0,0.000243,2]
[375350393,1753630252125,-1000.0,0.000243,2]
[375350395,1753630252135,-1153.41,0.000243,2]
[375350397,1753630252145,-488.8,0.000243,7]
[375350400,1753630252155,-1983.35,0.000243,7]
[375350402,1753630252165,-500.0,0.00024317,2]
[375350404,1753630252175,-155.26545874,0.00024329,2]
[375350405,1753630252184,-155.26545879,0.00024329,2]
[375350407,1753630252194,-155.26545874,0.00024329,2]
[375350410,1753630252204,-167.4724735,0.00024329,2]
[375350412,1753630252213,-322.0,0.00024333,2]
[375350414,1753630252223,-1556.0,0.00024344,2]
[375350416,1753630252233,-960.72986292,0.00024348,11]
[375350418,1753630252243,-212.19,0.00024383,2]
[375350420,1753630252253,-1176.83,0.00024383,2]
[375350422,1753630252263,-460.0,0.00024383,2]
[375350424,1753630252272,-1072.36,0.00024383,2]
[375350426,1753630252282,-978.59,0.00024383,2]
[375350427,1753630252294,-2050.99,0.00024383,2]
[375350429,1753630252303,-672.5,0.00024383,2]
[375350432,1753630252313,-549.02,0.00024383,2]
[375350434,1753630252323,-2590.32,0.00024383,2]
[375350436,1753630252333,-916.27,0.00024383,2]
[375350437,1753630252343,-774.57,0.00024383,2]
[375350439,1753630252353,-463.32,0.00024383,2]
[375350441,1753630252363,-1418.71,0.00024383,2]
[375350443,1753630252372,-810.81,0.00024383,2]
[375350446,1753630252382,-151.0,0.000244,5]
[375350448,1753630252392,-495.21721012,0.000244,2]
[375350450,1753630252402,-643.0,0.000244,2]
[375350452,1753630252412,-500.0,0.00024403,2]
[375350454,1753630252422,-155.26545874,0.00024438,2]
[375350456,1753630252432,-500.0,0.00024448,2]
[375350457,1753630252441,-500.0,0.00024469,2]
[375350460,1753630252451,-800.0,0.00024474,2]
[375350462,1753630252461,-151.65,0.00024476,2]
[375350464,1753630252471,-960.72986292,0.00024486,11]
[375350466,1753630252480,-151.0,0.000245,9]
[375350468,1753630252490,-43440.16,0.000245,2]
[375350470,1753630252500,-288.467944,0.000245,7]
[375350472,1753630252510,-288.467944,0.000245,7]
[375350474,1753630252519,-213.472028,0.000245,7]
[375350476,1753630252529,-151.0,0.000245,7]
[375350478,1753630252539,-151.0,0.000245,7]
[375350480,1753630252552,-151.0,0.000245,7]
[375350482,1753630252562,-216.01841554,0.000245,7]
[375350484,1753630252571,-151.0,0.000245,7]
[375350486,1753630252582,-200.0,0.000245,2]
[375350488,1753630252593,-160.0,0.000245,7]
[375350490,1753630252602,-151.0,0.000245,7]
[375350492,1753630252612,-151.0,0.000245,7]
[375350494,1753630252622,-151.0,0.000245,7]
[375350496,1753630252632,-500.0,0.0002452,2]
[375350498,1753630252642,-800.0,0.00024536,2]
[375350500,1753630252651,-463.25109401,0.00024544,2]
[375350502,1753630252661,-800.0,0.00024553,2]
[375350504,1753630252671,-156.137012,0.00024558,9]
[375350506,1753630252680,-619.0,0.00024562,2]
[375350508,1753630252690,-561.0,0.00024562,2]
[375350510,1753630252699,-500.0,0.00024563,2]
[375350512,1753630252711,-155.26545874,0.00024575,2]
[375350514,1753630252720,-800.0,0.00024596,2]
[375350516,1753630252730,-1659.25,0.000246,7]
[375350518,1753630252740,-500.0,0.00024607,2]
[375350521,1753630252750,-472.1,0.00024619,6]
[375350535,1753630252871,-960.72986292,0.00024624,11]
[375350537,1753630252881,-167.4724735,0.0002463,2]
[375350539,1753630252890,-800.0,0.00024631,2]
[375350540,1753630252900,-400.8950295,0.00024641,2]
[375350542,1753630252909,-1601.97653788,0.00024641,2]
[375350544,1753630252918,-479.12159555,0.00024641,2]
[375350546,1753630252927,-1916.48638219,0.00024641,2]
[375350548,1753630252937,-4312.09435993,0.00024641,2]
[375350550,1753630252946,-7658.27958323,0.00024641,2]
[375350552,1753630252955,-17908.96286681,0.0002465,2]
[375351748,1753630265961,423.745341,0.00013699,2]
[375354529,1753630425304,-5000.0,0.00018887,2]
[375354530,1753630426300,-150.0,0.00018918,2]
[375354531,1753630426326,-316.56129544,0.00018978,2]
[375354532,1753630426354,-4533.43870456,0.00019078,2]
[375354533,1753630427294,-3350.24419887,0.00019078,2]
[375354534,1753630427321,-460.0,0.00019178,2]
[375354535,1753630427350,-460.0,0.00019178,2]
[375354536,1753630427381,-460.0,0.00019178,2]
[375354537,1753630427409,-269.75580113,0.00019178,2]
[375354538,1753630433501,-190.24419887,0.00019178,2]
[375354539,1753630433527,-359.75580113,0.00019178,2]
[375354544,1753631210499,402.558073,0.00013699,2]
[375354546,1753631226123,-508.0,0.00018816,2]
[375354547,1753631226144,-300.0,0.00018816,2]
[375354548,1753631226165,-5605.27338826,0.00018817,2]
[375354550,1753631235625,166.8917784,0.0001828,2]
[375354554,1753631263529,4697.58004482,0.00018511,2]
[375354706,1753631432900,-170.23918783,0.000188,2]
[375354708,1753631432911,-300.0,0.00018815,2]
[375354710,1753631432920,-261.5905568,0.00018815,2]
[375355144,1753631438960,-700.0,0.00018768,2]
[375355145,1753631438970,-38.4094432,0.00018815,2]
[375355146,1753631438980,-1200.0,0.00018815,2]
[375355147,1753631438989,-2078.37210337,0.00018816,2]
[375355148,1753631439141,-13327.71204123,0.00018816,2]
[375355151,1753631439151,-19294.72661174,0.00018817,2]
[375355154,1753631439163,-1216.46630866,0.000189,2]
[375355157,1753631439172,-302.69733596,0.000189,2]
[375355159,1753631439181,-170.37559616,0.00019089,2]
[375355160,1753631439191,-500.0,0.00019173,2]
[375355161,1753631439202,-5925.5,0.00019177,2]
[375355162,1753631439213,-323.56202207,0.00019177,2]
[375355163,1753631439222,-220.23540611,0.00019177,2]
[375355164,1753631439231,-460.0,0.00019178,2]
[375355165,1753631439241,-460.0,0.00019178,2]
[375355166,1753631439254,-460.0,0.00019178,2]
[375355167,1753631439263,-460.0,0.00019178,2]
[375355168,1753631439273,-460.0,0.00019178,2]
[375355169,1753631439282,-460.0,0.00019178,2]
[375355170,1753631439292,-460.0,0.00019178,2]
[375355171,1753631439302,-479.16,0.00019178,2]
[375355172,1753631439311,-477.94021107,0.00019178,2]
[375355173,1753631439320,-460.0,0.00019178,2]
[375355174,1753631439332,-460.0,0.00019178,2]
[375355175,1753631439342,-460.0,0.00019178,2]
[375355176,1753631439351,-460.0,0.00019178,2]
[375355177,1753631439361,-460.0,0.00019178,2]
[375355178,1753631439370,-461.45066792,0.00019178,2]
[375355179,1753631439379,-460.0,0.00019178,2]
[375355180,1753631439388,-460.0,0.00019178,2]
[375355181,1753631439397,-460.0,0.00019178,2]
[375355182,1753631439406,-460.0,0.00019178,2]
[375355183,1753631439416,-460.0,0.00019178,2]
[375355184,1753631439426,-460.0,0.00019178,2]
[375355185,1753631439436,-460.0,0.00019178,2]
[375355186,1753631439445,-185.17801772,0.00019178,2]
[375355187,1753631439455,-460.0,0.00019178,2]
[375355188,1753631439465,-460.0,0.00019178,2]
[375355189,1753631439474,-460.0,0.00019178,2]
[375355190,1753631439484,-460.0,0.00019178,2]
[375355191,1753631439493,-460.0,0.00019178,2]
[375355193,1753631439503,-460.0,0.00019178,2]
[375355195,1753631439512,-219.72675955,0.00019178,2]
[375355197,1753631439522,-705.18,0.00019178,2]
[375355199,1753631439531,-460.0,0.00019178,2]
[375355201,1753631439541,-460.0,0.00019178,2]
[375355203,1753631439551,-460.0,0.00019178,2]
[375355205,1753631439561,-460.0,0.00019178,2]
[375355207,1753631439570,-460.0,0.00019178,2]
[375355210,1753631439584,-460.0,0.00019178,2]
[375355212,1753631439594,-460.0,0.00019178,2]
[375355214,1753631439604,-460.0,0.00019178,2]
[375355216,1753631439614,-460.0,0.00019178,2]
[375355218,1753631439623,-460.0,0.00019178,2]
[375355220,1753631439633,-460.0,0.00019178,2]
[375355222,1753631439643,-460.0,0.00019178,2]
[375355224,1753631439652,-460.0,0.00019178,2]
[375355226,1753631439662,-460.0,0.00019178,2]
[375355228,1753631439672,-460.0,0.00019178,2]
[375355231,1753631439681,-460.0,0.00019178,2]
[375355233,1753631439691,-460.0,0.00019178,2]
[375355234,1753631439700,-460.0,0.00019178,2]
[375355236,1753631439710,-460.0,0.00019178,2]
[375355239,1753631439720,-460.0,0.00019178,2]
[375355241,1753631439730,-460.0,0.00019178,2]
[375355243,1753631439739,-460.0,0.00019178,2]
[375355245,1753631439750,-223.41,0.00019178,2]
[375355247,1753631439759,-460.0,0.00019178,2]
[375355249,1753631439769,-460.0,0.00019178,2]
[375355251,1753631439779,-460.0,0.00019178,2]
[375355253,1753631439788,-460.0,0.00019178,2]
[375355255,1753631439797,-460.0,0.00019178,2]
[375355257,1753631439807,-460.0,0.00019178,2]
[375355259,1753631439816,-460.0,0.00019178,2]
[375355261,1753631439826,-220.3,0.00019178,2]
[375355263,1753631439836,-460.0,0.00019178,2]
[375355265,1753631439846,-460.0,0.00019178,2]
[375355267,1753631439855,-409.46012293,0.00019178,2]
[375355269,1753631439865,-460.0,0.00019178,2]
[375355271,1753631439875,-460.0,0.00019178,2]
[375355273,1753631439884,-460.0,0.00019178,2]
[375355274,1753631439894,-460.0,0.00019178,2]
[375355276,1753631439903,-572.05665888,0.00019178,2]
[375355278,1753631439914,-460.0,0.00019178,2]
[375355280,1753631439926,-460.0,0.00019178,2]
[375355282,1753631439936,-460.0,0.00019178,2]
[375355284,1753631439946,-460.0,0.00019178,2]
[375355286,1753631439955,-460.0,0.00019178,2]
[375355289,1753631439964,-460.0,0.00019178,2]
[375355291,1753631439974,-460.0,0.00019178,2]
[375355293,1753631439984,-460.0,0.00019178,2]
[375355295,1753631439994,-572.62295176,0.00019178,2]
[375355297,1753631440004,-460.0,0.00019178,2]
[375355299,1753631440014,-460.0,0.00019178,2]
[375355301,1753631440023,-460.0,0.00019178,2]
[375355304,1753631440032,-460.0,0.00019178,2]
[375355307,1753631440042,-460.0,0.00019178,2]
[375355309,1753631440052,-460.0,0.00019178,2]
[375355311,1753631440062,-460.0,0.00019178,2]
[375355313,1753631440071,-460.0,0.00019178,2]
[375355315,1753631440081,-460.0,0.00019178,2]
[375355317,1753631440091,-460.0,0.00019178,2]
[375355319,1753631440100,-460.0,0.00019178,2]
[375355321,1753631440110,-460.0,0.00019178,2]
[375355323,1753631440121,-460.0,0.00019178,2]
[375355324,1753631440130,-196.13128799,0.00019178,2]
[375355327,1753631440143,-460.0,0.00019178,2]
[375355329,1753631440152,-437.30589717,0.00019178,2]
[375355331,1753631440163,-460.0,0.00019178,2]
[375355333,1753631440172,-460.0,0.00019178,2]
[375355334,1753631440182,-460.0,0.00019178,2]
[375355336,1753631440192,-460.0,0.00019178,2]
[375355339,1753631440202,-460.0,0.00019178,2]
[375355341,1753631440211,-460.0,0.00019178,2]
[375355343,1753631440221,-566.37487365,0.00019178,2]
[375355345,1753631440230,-460.0,0.00019178,2]
[375355347,1753631440240,-460.0,0.00019178,2]
[375355349,1753631440250,-460.0,0.00019178,2]
[375355351,1753631440263,-374.27767884,0.00019178,2]
[375355353,1753631440274,-460.0,0.00019178,2]
[375355355,1753631440284,-460.0,0.00019178,2]
[375355357,1753631440294,-460.0,0.00019178,2]
[375355359,1753631440305,-460.0,0.00019178,2]
[375355361,1753631440315,-382.73226407,0.00019178,2]
[375355362,1753631440325,-465.42356477,0.00019178,2]
[375355363,1753631440336,-460.0,0.00019178,2]
[375355364,1753631440346,-460.0,0.00019178,2]
[375355365,1753631440356,-471.81255833,0.00019178,2]
[375355366,1753631440366,-460.0,0.00019178,2]
[375355367,1753631440376,-460.0,0.00019178,2]
[375355368,1753631440386,-460.0,0.00019178,2]
[375355369,1753631440396,-460.0,0.00019178,2]
[375355370,1753631440406,-460.0,0.00019178,2]
[375355371,1753631440416,-460.0,0.00019178,2]
[375355372,1753631440426,-460.0,0.00019178,2]
[375355373,1753631440436,-525.53,0.00019178,2]
[375355374,1753631440445,-460.0,0.00019178,2]
[375355375,1753631440455,-460.0,0.00019178,2]
[375355376,1753631440465,-460.0,0.00019178,2]
[375355377,1753631440474,-460.0,0.00019178,2]
[375355378,1753631440484,-460.0,0.00019178,2]
[375355379,1753631440494,-460.0,0.00019178,2]
[375355380,1753631440506,-460.0,0.00019178,2]
[375355381,1753631440516,-460.0,0.00019178,2]
[375355382,1753631440526,-460.0,0.00019178,2]
[375355383,1753631440536,-460.0,0.00019178,2]
[375355384,1753631440545,-460.0,0.00019178,2]
[375355385,1753631440555,-460.0,0.00019178,2]
[375355386,1753631440565,-465.78350436,0.00019178,2]
[375355387,1753631440575,-460.0,0.00019178,2]
[375355388,1753631440585,-460.0,0.00019178,2]
[375355389,1753631440594,-460.0,0.00019178,2]
[375355390,1753631440605,-460.0,0.00019178,2]
[375355391,1753631440615,-460.0,0.00019178,2]
[375355392,1753631440624,-460.0,0.00019178,2]
[375355393,1753631440634,-460.0,0.00019178,2]
[375355394,1753631440644,-645.92,0.00019178,2]
[375355395,1753631440653,-460.0,0.00019178,2]
[375355396,1753631440663,-460.0,0.00019178,2]
[375355397,1753631440674,-460.0,0.00019178,2]
[375355398,1753631440684,-460.0,0.00019178,2]
[375355399,1753631440693,-460.0,0.00019178,2]
[375355400,1753631440703,-460.0,0.00019178,2]
[375355401,1753631440712,-460.0,0.00019178,2]
[375355402,1753631440722,-460.0,0.00019178,2]
[375355403,1753631440732,-460.0,0.00019178,2]
[375355404,1753631440742,-460.0,0.00019178,2]
[375355405,1753631440752,-460.0,0.00019178,2]
[375355406,1753631440762,-460.0,0.00019178,2]
[375355407,1753631440772,-460.0,0.00019178,2]
[375355408,1753631440782,-460.0,0.00019178,2]
[375355409,1753631440791,-460.0,0.00019178,2]
[375355410,1753631440801,-460.0,0.00019178,2]
[375355411,1753631440811,-460.0,0.00019178,2]
[375355412,1753631440822,-460.0,0.00019178,2]
[375355413,1753631440831,-460.0,0.00019178,2]
[375355414,1753631440842,-460.0,0.00019178,2]
[375355415,1753631440853,-460.0,0.00019178,2]
[375355416,1753631440863,-460.0,0.00019178,2]
[375355417,1753631440873,-460.0,0.00019178,2]
[375355418,1753631440882,-460.0,0.00019178,2]
[375355420,1753631440892,-561.53,0.00019178,2]
[375355422,1753631440901,-460.0,0.00019178,2]
[375355424,1753631440911,-460.0,0.00019178,2]
[375355425,1753631440920,-460.0,0.00019178,2]
[375355428,1753631440930,-460.0,0.00019178,2]
[375355429,1753631440940,-460.0,0.00019178,2]
[375355431,1753631440950,-460.0,0.00019178,2]
[375355434,1753631440959,-460.0,0.00019178,2]
[375355436,1753631440969,-460.0,0.00019178,2]
[375355438,1753631440979,-460.0,0.00019178,2]
[375355440,1753631440991,-460.0,0.00019178,2]
[375355441,1753631441002,-460.0,0.00019178,2]
[375355444,1753631441013,-1371.35,0.00019178,2]
[375355446,1753631441024,-460.0,0.00019178,2]
[375355448,1753631441034,-277.73331554,0.00019178,2]
[375355450,1753631441044,-460.0,0.00019178,2]
[375355452,1753631441054,-460.0,0.00019178,2]
[375355454,1753631441064,-460.0,0.00019178,2]
[375355456,1753631441073,-460.0,0.00019178,2]
[375355458,1753631441082,-460.0,0.00019178,2]
[375355460,1753631441091,-460.0,0.00019178,2]
[375355462,1753631441101,-460.0,0.00019178,2]
[375355463,1753631441110,-460.0,0.00019178,2]
[375355466,1753631441120,-460.0,0.00019178,2]
[375355467,1753631441129,-607.61,0.00019178,2]
[375355469,1753631441138,-460.0,0.00019178,2]
[375355472,1753631441149,-602.3,0.00019178,2]
[375355474,1753631441163,-460.0,0.00019178,2]
[375355476,1753631441173,-462.87144779,0.00019178,2]
[375355478,1753631441183,-265.40365917,0.00019178,2]
[375355480,1753631441193,-460.0,0.00019178,2]
[375355482,1753631441203,-460.0,0.00019178,2]
[375355484,1753631441212,-540.4,0.00019178,2]
[375355486,1753631441221,-460.0,0.00019178,2]
[375355488,1753631441231,-460.0,0.00019178,2]
[375355490,1753631441240,-460.0,0.00019178,2]
[375355492,1753631441252,-460.0,0.00019178,2]
[375355494,1753631441263,-460.0,0.00019178,2]
[375355512,1753631441418,-460.0,0.00019178,2]
[375355514,1753631441428,-460.0,0.00019178,2]
[375355516,1753631441438,-460.0,0.00019178,2]
[375355518,1753631441448,-460.0,0.00019178,2]
[375355520,1753631441457,-460.0,0.00019178,2]
[375355522,1753631441467,-460.0,0.00019178,2]
[375355524,1753631441476,-460.0,0.00019178,2]
[375355526,1753631441485,-460.0,0.00019178,2]
[375355528,1753631441495,-460.0,0.00019178,2]
[375355530,1753631441504,-460.0,0.00019178,2]
[375355532,1753631441513,-460.0,0.00019178,2]
[375355534,1753631441523,-460.0,0.00019178,2]
[375355536,1753631441533,-460.0,0.00019178,2]
[375355538,1753631441542,-460.0,0.00019178,2]
[375355540,1753631441552,-460.0,0.00019178,2]
[375355542,1753631441561,-460.0,0.00019178,2]
[375355544,1753631441570,-460.0,0.00019178,2]
[375355547,1753631441580,-460.0,0.00019178,2]
[375355549,1753631441590,-460.0,0.00019178,2]
[375355551,1753631441599,-460.0,0.00019178,2]
[375355553,1753631441610,-460.0,0.00019178,2]
[375355555,1753631441620,-460.0,0.00019178,2]
[375355557,1753631441629,-818.01,0.00019178,2]
[375355559,1753631441638,-460.0,0.00019178,2]
[375355561,1753631441647,-460.0,0.00019178,2]
[375355563,1753631441656,-460.0,0.00019178,2]
[375355564,1753631441665,-460.0,0.00019178,2]
[375355566,1753631441675,-460.0,0.00019178,2]
[375355568,1753631441685,-602.68,0.00019178,2]
[375355571,1753631441696,-460.0,0.00019178,2]
[375355573,1753631441706,-460.0,0.00019178,2]
[375355575,1753631441716,-460.0,0.00019178,2]
[375355577,1753631441726,-460.0,0.00019178,2]
[375355579,1753631441737,-460.0,0.00019178,2]
[375355581,1753631441746,-460.0,0.00019178,2]
[375355583,1753631441755,-460.0,0.00019178,2]
[375355585,1753631441764,-460.0,0.00019178,2]
[375355587,1753631441773,-460.0,0.00019178,2]
[375355589,1753631441784,-460.0,0.00019178,2]
[375355591,1753631441793,-460.0,0.00019178,2]
[375355593,1753631441802,-460.0,0.00019178,2]
[375355595,1753631441812,-153.46693738,0.00019178,2]
[375355597,1753631441821,-460.0,0.00019178,2]
[375355599,1753631441830,-460.0,0.00019178,2]
[375355601,1753631441839,-460.0,0.00019178,2]
[375355603,1753631441849,-408.34516114,0.00019178,2]
[375355605,1753631441858,-460.0,0.00019178,2]
[375355607,1753631441868,-460.0,0.00019178,2]
[375355609,1753631441878,-460.0,0.00019178,2]
[375355611,1753631441888,-1711.61,0.00019178,2]
[375355613,1753631441897,-460.0,0.00019178,2]
[375355615,1753631441907,-460.0,0.00019178,2]
[375355617,1753631441917,-460.0,0.00019178,2]
[375355619,1753631441926,-460.0,0.00019178,2]
[375355621,1753631441935,-460.0,0.00019178,2]
[375355623,1753631441945,-460.0,0.00019178,2]
[375355625,1753631441954,-460.0,0.00019178,2]
[375355627,1753631441963,-460.0,0.00019178,2]
[375355629,1753631441973,-460.0,0.00019178,2]
[375355631,1753631441983,-460.0,0.00019178,2]
[375355633,1753631441992,-460.0,0.00019178,2]
[375355635,1753631442001,-460.0,0.00019178,2]
[375355637,1753631442011,-984.67,0.00019178,2]
[375355639,1753631442020,-460.0,0.00019178,2]
[375355642,1753631442030,-460.0,0.00019178,2]
[375355644,1753631442039,-460.0,0.00019178,2]
[375355646,1753631442049,-460.0,0.00019178,2]
[375355648,1753631442059,-460.0,0.00019178,2]
[375355650,1753631442068,-460.0,0.00019178,2]
[375355652,1753631442078,-460.0,0.00019178,2]
[375355654,1753631442088,-460.0,0.00019178,2]
[375355655,1753631442099,-460.0,0.00019178,2]
[375355658,1753631442109,-460.0,0.00019178,2]
[375355659,1753631442118,-460.0,0.00019178,2]
[375355661,1753631442128,-460.0,0.00019178,2]
[375355664,1753631442138,-460.0,0.00019178,2]
[375355666,1753631442147,-196.358267,0.00019178,2]
[375355668,1753631442158,-500.0,0.00019178,2]
[375355670,1753631442167,-150.0,0.00019311,2]
[375355672,1753631442176,-232.32,0.00019452,2]
[375355674,1753631442186,-460.0,0.00019452,2]
[375355676,1753631442195,-460.0,0.00019452,2]
[375355678,1753631442204,-460.0,0.00019452,2]
[375355680,1753631442214,-460.0,0.00019452,2]
[375355682,1753631442223,-705.18,0.00019452,2]
[375355684,1753631442233,-460.0,0.00019452,2]
[375355686,1753631442242,-462.99013013,0.00019452,2]
[375355688,1753631442252,-460.0,0.00019452,2]
[375355690,1753631442264,-460.0,0.00019452,2]
[375355692,1753631442274,-460.0,0.00019452,2]
[375355694,1753631442285,-460.0,0.00019452,2]
[375355696,1753631442294,-460.0,0.00019452,2]
[375355698,1753631442305,-460.0,0.00019452,2]
[375355700,1753631442315,-460.0,0.00019452,2]
[375355702,1753631442325,-460.0,0.00019452,2]
[375355704,1753631442339,-499.40723209,0.00019452,2]
[375355706,1753631442350,-460.0,0.00019452,2]
[375355708,1753631442359,-460.0,0.00019452,2]
[375355710,1753631442368,-460.0,0.00019452,2]
[375355712,1753631442378,-460.0,0.00019452,2]
[375355714,1753631442387,-460.0,0.00019452,2]
[375355716,1753631442397,-460.0,0.00019452,2]
[375355718,1753631442407,-460.0,0.00019452,2]
[375355720,1753631442417,-460.0,0.00019452,2]
[375355722,1753631442426,-460.0,0.00019452,2]
[375355724,1753631442436,-424.19901775,0.00019452,2]
[375355726,1753631442446,-460.0,0.00019452,2]
[375355728,1753631442455,-460.0,0.00019452,2]
[375355730,1753631442465,-460.0,0.00019452,2]
[375355732,1753631442475,-460.0,0.00019452,2]
[375355734,1753631442484,-460.0,0.00019452,2]
[375355736,1753631442494,-543.18304701,0.00019452,2]
[375355738,1753631442504,-460.0,0.00019452,2]
[375355740,1753631442513,-555.22831236,0.00019452,2]
[375355742,1753631442522,-460.0,0.00019452,2]
[375355744,1753631442531,-402.5,0.00019452,2]
[375355746,1753631442541,-460.0,0.00019452,2]
[375355748,1753631442551,-460.0,0.00019452,2]
[375355750,1753631442560,-460.0,0.00019452,2]
[375355752,1753631442571,-460.0,0.00019452,2]
[375355755,1753631442582,-460.0,0.00019452,2]
[375355757,1753631442594,-536.66,0.00019452,2]